fUSD/lending_fUSD_20250104
["ID","MTS","AMOUNT","RATE_DAILY","PERIOD"]
[347648047,1736011843012,-15407.0,9.801e-05,2]
[347648048,1736011843022,-1000.0,9.894e-05,2]
[347648049,1736011843031,-5641.4412,9.9e-05,2]
[347648050,1736011843041,-46425.4465,9.9e-05,2]
[347648051,1736011843050,-4359.5784,9.9e-05,2]
[347648052,1736011843060,-5000.0,9.9e-05,2]
[347648054,1736011843070,-2053.0,9.9e-05,3]
[347648056,1736011843079,-14701.48452419,9.902e-05,2]
[347648058,1736011843087,-214.031947,9.904e-05,2]
[347648060,1736011843097,-500.0,9.909e-05,2]
[347648061,1736011843106,-500.0,9.909e-05,2]
[347648063,1736011843116,-296.43896969,9.909e-05,2]
[347648064,1736011843125,-500.0,9.909e-05,2]
[347648065,1736011843135,-500.0,9.909e-05,2]
[347648066,1736011843144,-500.0,9.909e-05,2]
[347648067,1736011843154,-755.59,9.909e-05,2]
[347648068,1736011843164,-2222.078,9.937e-05,2]
[347648069,1736011843173,-163.188,9.937e-05,2]
[347648070,1736011843182,-500.0,9.972e-05,2]
[347648071,1736011843191,-500.0,9.972e-05,2]
[347648072,1736011843201,-500.0,9.973e-05,2]
[347648073,1736011843210,-500.0,9.973e-05,2]
[347648074,1736011843220,-500.0,9.979e-05,2]
[347648075,1736011843229,-500.0,9.979e-05,2]
[347648076,1736011843239,-500.0,9.979e-05,2]
[347648077,1736011843248,-171.92769369,9.979e-05,2]
[347648078,1736011843257,-500.0,9.979e-05,2]
[347648079,1736011843267,-500.0,9.979e-05,2]
[347648080,1736011843277,-560.07,9.979e-05,2]
[347648081,1736011843286,-500.0,9.979e-05,2]
[347648082,1736011843296,-1358.07,9.979e-05,2]
[347648083,1736011843304,-79250.47378737,9.98e-05,2]
[347648084,1736011843314,-224.30611857,9.985e-05,2]
[347648085,1736011843323,-1794.1774667,9.997e-05,2]
[347648086,1736011843333,-3050.8251565,9.997e-05,2]
[347648088,1736011843342,-7215.87593423,9.998e-05,2]
[347648089,1736011843352,-536.40920119,9.999e-05,2]
[347648090,1736011843362,-500.0,9.999e-05,2]
[347648091,1736011843371,-500.0,9.999e-05,2]
[347648092,1736011843380,-437.5957441,9.999e-05,2]
[347648093,1736011843390,-500.0,9.999e-05,2]
[347648094,1736011843399,-500.0,9.999e-05,2]
[347648095,1736011843409,-500.0,9.999e-05,2]
[347648096,1736011843418,-500.0,9.999e-05,2]
[347648097,1736011843427,-500.0,9.999e-05,2]
[347648098,1736011843436,-736.36,9.999e-05,2]
[347648099,1736011843445,-523.28,9.999e-05,2]
[347648100,1736011843455,-500.0,9.999e-05,2]
[347648101,1736011843464,-500.0,9.999e-05,2]
[347648102,1736011843475,-500.0,9.999e-05,2]
[347648103,1736011843484,-500.0,9.999e-05,2]
[347648104,1736011843493,-500.0,9.999e-05,2]
[347648105,1736011843503,-500.0,9.999e-05,2]
[347648106,1736011843511,-702.67,9.999e-05,2]
[347648107,1736011843521,-15000.0,9.999e-05,2]
[347648108,1736011843530,-1347892.13934667,0.0001,2]
[347648109,1736011843543,-1109.5628542,0.0001,2]
[347648110,1736011843554,-1254.32754042,0.0001,2]
[347648111,1736011843566,-37885.20000002,0.0001,2]
[347648112,1736011843588,-4584.2756899,0.0001,2]
[347648113,1736011843599,-3986.19026711,0.0001,2]
[347648114,1736011843608,-72911.12064106,0.0001,2]
[347648115,1736011843619,-17767.93427304,0.0001,2]
[347648116,1736011843630,-34153.92237292,0.0001,2]
[347648117,1736011843641,-2239.10260521,0.0001,2]
[347648118,1736011843652,-981.88206686,0.0001,2]
[347648120,1736011845777,-12610.86382,0.0001,2]
[347648121,1736011845789,-1920.0,0.0001,2]
[347648122,1736011845837,-3658.55757206,0.0001,2]
[347648123,1736011845852,-71462.0863167,0.0001,2]
[347648124,1736011845864,-53634.30003778,0.0001,2]
[347648125,1736011845876,-263.70679912,0.0001,2]
[347648126,1736011845887,-3946.738361,0.0001,2]
[347648127,1736011845910,-1056.34317,0.0001,2]
[347648128,1736011845921,-466.43999997,0.0001,2]
[347648129,1736011845933,-472963.71196428,0.0001,2]
[347648130,1736011845942,-121375.33905227,0.0001,2]
[347648131,1736011845961,-3595.97560538,0.0001,2]
[347648132,1736011845973,-1526.43607782,0.0001,2]
[347648133,1736011845984,-4020.00006389,0.0001,2]
[347648134,1736011845996,-2291.851,0.0001,2]
[347648135,1736011846007,-27045.5275716,0.0001,2]
[347648136,1736011846019,-806.10305064,0.0001,2]
[347648137,1736011846030,-282.829833,0.0001,2]
[347648138,1736011846041,-256.09224003,0.0001,2]
[347648139,1736011846078,-926.14106732,0.0001,2]
[347648140,1736011846090,-9753.09489998,0.0001,2]
[347648141,1736011846101,-545.54747246,0.0001,2]
[347648142,1736011846113,-1747.8,0.0001,2]
[347648143,1736011846150,-1394.25,0.0001,2]
[347648144,1736011846161,-46667.11958579,0.0001,2]
[347648145,1736011846173,-3222.3,0.0001,2]
[347648146,1736011846187,-375.6799385,0.0001,2]
[347648167,1736011867830,287.25317782,7.1e-05,2]
[347648168,1736011867864,46260.964575,7.1e-05,2]
[347648169,1736012549977,2621.66451535,6.967e-05,7]
[347648170,1736012608534,194.0,2.5e-05,2]
[347648171,1736012611985,201.25361845,7.084e-05,2]
[347648172,1736012668357,176.0,2.5e-05,2]
[347648173,1736012728362,164.0,2.5e-05,2]
[347648174,1736012788638,155.0,2.5e-05,2]
[347648181,1736013031983,-1251.70688,8.178e-05,2]
[347648182,1736013031992,-741.8,8.219e-05,2]
[347648183,1736013032001,-3046.01502,8.416e-05,2]
[347648184,1736013032095,-2148.36498,8.416e-05,2]
[347648185,1736013032104,-159.39,8.45e-05,2]
[347648186,1736013032114,-1272.03,8.484e-05,2]
[347648187,1736013032123,-1000.0,8.511e-05,2]
[347648188,1736013032133,-186.43010411,8.511e-05,2]
[347648189,1736013032142,-1500.0,8.548e-05,2]
[347648190,1736013032151,-170.13,8.551e-05,2]
[347648191,1736013032161,-2000.0,8.561e-05,2]
[347648192,1736013032170,-250.0,8.561e-05,2]
[347648193,1736013032179,-366.32,8.568e-05,2]
[347648194,1736013032188,-500.0,8.767e-05,2]
[347648195,1736013032197,-300.0,8.787e-05,2]
[347648196,1736013032207,-5431.55,8.788e-05,2]
[347648197,1736013032216,-1132.12,8.797e-05,2]
[347648198,1736013032225,-250.0,8.815e-05,2]
[347648199,1736013032234,-250.0,8.858e-05,2]
[347648200,1736013032243,-327.97,8.969e-05,2]
[347648201,1736013032253,-167.68,8.974e-05,2]
[347648202,1736013032263,-150.0,8.986e-05,2]
[347648203,1736013032272,-150.0,9e-05,2]
[347648204,1736013032281,-150.0,9e-05,2]
[347648205,1736013032290,-150.32158698,9e-05,2]
[347648206,1736013032302,-172.13990835,9e-05,2]
[347648207,1736013032311,-150.0,9e-05,2]
[347648208,1736013032320,-150.00000001,9e-05,2]
[347648209,1736013032330,-150.0,9e-05,2]
[347648210,1736013032339,-277.44919549,9e-05,2]
[347648211,1736013032348,-150.42695809,9e-05,2]
[347648212,1736013032358,-150.0,9e-05,2]
[347648213,1736013032367,-300.0,9e-05,3]
[347648214,1736013032376,-150.0,9.037e-05,2]
[347648215,1736013032385,-167.23,9.048e-05,2]
[347648216,1736013032394,-150.0,9.063e-05,2]
[347648217,1736013032403,-150.0,9.071e-05,2]
[347648218,1736013032413,-150.0,9.074e-05,2]
[347648219,1736013032422,-600.0,9.1e-05,3]
[347648220,1736013032431,-150.0,9.111e-05,2]
[347648221,1736013032440,-150.0,9.125e-05,2]
[347648222,1736013032450,-150.0,9.143e-05,2]
[347648224,1736013032459,-186.43010409,9.145e-05,2]
[347648226,1736013032468,-150.0,9.148e-05,2]
[347648227,1736013032477,-500.0,9.158e-05,2]
[347648230,1736013032490,-700.0,9.158e-05,2]
[347648231,1736013032499,-1900.0,9.158e-05,2]
[347648233,1736013032508,-150.0,9.185e-05,2]
[347648235,1736013032517,-150.0,9.188e-05,2]
[347648237,1736013032527,-1000.0,9.2e-05,3]
[347648239,1736013032537,-150.0,9.214e-05,2]
[347648241,1736013032547,-150.0,9.222e-05,2]
[347648244,1736013032557,-150.0,9.25e-05,2]
[347648264,1736013032751,-150.0,9.259e-05,2]
[347648266,1736013032760,-150.0,9.286e-05,2]
[347648268,1736013032770,-150.0,9.296e-05,2]
[347648270,1736013032779,-152.409,9.3e-05,2]
[347648272,1736013032788,-1300.0,9.3e-05,3]
[347648274,1736013032798,-150.0,9.313e-05,2]
[347648276,1736013032808,-150.0,9.333e-05,2]
[347648278,1736013032817,-150.0,9.333e-05,2]
[347648280,1736013032826,-150.0,9.357e-05,2]
[347648282,1736013032835,-150.0,9.37e-05,2]
[347648284,1736013032844,-150.0,9.375e-05,2]
[347648286,1736013032853,-1600.0,9.4e-05,3]
[347648288,1736013032862,-150.0,9.407e-05,2]
[347648290,1736013032871,-150.0,9.429e-05,2]
[347648292,1736013032880,-150.0,9.438e-05,2]
[347648294,1736013032889,-150.0,9.444e-05,2]
[347648296,1736013032898,-150.0,9.481e-05,2]
[347648298,1736013032907,-738.193,9.5e-05,2]
[347648300,1736013032916,-150.0,9.5e-05,2]
[347648302,1736013032926,-150.0,9.5e-05,2]
[347648304,1736013032935,-300.0,9.5e-05,3]
[347648306,1736013032944,-150.0,9.519e-05,2]
[347648308,1736013032952,-1272.03,9.545e-05,2]
[347648310,1736013032961,-150.0,9.556e-05,2]
[347648312,1736013032970,-150.0,9.563e-05,2]
[347648314,1736013032979,-150.0,9.571e-05,2]
[347648316,1736013032988,-1000.0,9.574e-05,2]
[347648317,1736013032997,-150.0,9.593e-05,2]
[347648319,1736013033006,-300.0,9.6e-05,3]
[347648322,1736013033015,-150.0,9.625e-05,2]
[347648323,1736013033025,-150.0,9.63e-05,2]
[347648324,1736013033034,-150.0,9.643e-05,2]
[347648325,1736013033043,-150.0,9.667e-05,2]
[347648326,1736013033054,-150.0,9.667e-05,2]
[347648327,1736013033063,-1641.99157011,9.669e-05,2]
[347648328,1736013033080,-1000.09,9.669e-05,2]
[347648329,1736013033114,-614.74399974,9.669e-05,2]
[347648330,1736013033163,-3199.24773015,9.669e-05,2]
[347648331,1736013033172,-150.0,9.688e-05,2]
[347648332,1736013033182,-300.0,9.7e-05,3]
[347648333,1736013033191,-150.0,9.704e-05,2]
[347648334,1736013033201,-150.0,9.714e-05,2]
[347648335,1736013033210,-150.0,9.728e-05,2]
[347648336,1736013033219,-150.0,9.73e-05,2]
[347648337,1736013033229,-150.0,9.74e-05,2]
[347648338,1736013033238,-150.0,9.741e-05,2]
[347648339,1736013033249,-1500.0,9.744e-05,2]
[347648340,1736013033259,-971.50758743,9.748e-05,2]
[347648341,1736013033273,-528.49241257,9.748e-05,2]
[347648342,1736013033283,-150.0,9.75e-05,2]
[347648343,1736013033293,-150.0,9.75e-05,2]
[347648344,1736013033303,-150.0,9.753e-05,2]
[347648345,1736013033312,-326.50758743,9.754e-05,2]
[347648346,1736013033324,-1173.49241257,9.754e-05,2]
[347648347,1736013033334,-150.0,9.757e-05,2]
[347648348,1736013033344,-150.0,9.763e-05,2]
[347648349,1736013033354,-341.71493999,9.764e-05,2]
[347648350,1736013033364,-150.0,9.767e-05,2]
[347648351,1736013033374,-500.0,9.768e-05,2]
[347648352,1736013033384,-500.0,9.768e-05,2]
[347648353,1736013033395,-500.0,9.768e-05,2]
[347648354,1736013033405,-500.0,9.768e-05,2]
[347648355,1736013033414,-500.0,9.768e-05,2]
[347648356,1736013033424,-171.84264744,9.775e-05,2]
[347648357,1736013033440,-1328.15735256,9.775e-05,2]
[347648358,1736013033449,-150.0,9.778e-05,2]
[347648359,1736013033459,-186.43010409,9.778e-05,2]
[347648360,1736013033469,-150.0,9.782e-05,2]
[347648361,1736013033479,-150.0,9.786e-05,2]
[347648362,1736013033491,-150.0,9.786e-05,2]
[347648363,1736013033501,-1500.0,9.789e-05,2]
[347648364,1736013033511,-150.0,9.798e-05,2]
[347648365,1736013033520,-150.0,9.798e-05,2]
[347648366,1736013033539,-1500.0,9.799e-05,2]
[347648367,1736013033548,-300.0,9.8e-05,3]
[347648368,1736013033558,-150.0,9.808e-05,2]
[347648369,1736013033568,-1500.0,9.809e-05,2]
[347648370,1736013033577,-150.0,9.813e-05,2]
[347648371,1736013033587,-150.0,9.815e-05,2]
[347648372,1736013033596,-150.0,9.823e-05,2]
[347648373,1736013033605,-150.0,9.832e-05,2]
[347648374,1736013033614,-1500.0,9.837e-05,2]
[347648375,1736013033623,-150.0,9.839e-05,2]
[347648376,1736013033633,-150.0,9.844e-05,2]
[347648377,1736013033642,-1500.0,9.848e-05,2]
[347648378,1736013033652,-150.0,9.852e-05,2]
[347648379,1736013033661,-150.0,9.857e-05,2]
[347648380,1736013033671,-150.0,9.863e-05,2]
[347648381,1736013033680,-217.78163493,9.865e-05,2]
[347648382,1736013033689,-150.0,9.872e-05,2]
[347648383,1736013033698,-150.0,9.875e-05,2]
[347648384,1736013033707,-150.0,9.875e-05,2]
[347648385,1736013033717,-1500.0,9.878e-05,2]
[347648386,1736013033726,-150.0,9.889e-05,2]
[347648387,1736013033735,-150.0,9.898e-05,2]
[347648388,1736013033744,-5828.3601,9.9e-05,2]
[347648389,1736013033754,-20715.5354,9.9e-05,2]
[347648390,1736013033763,-4571.3518,9.9e-05,2]
[347648391,1736013033772,-700.0,9.9e-05,3]
[347648392,1736013033782,-889.0799,9.9e-05,2]
[347648393,1736013033791,-150.0,9.902e-05,2]
[347648394,1736013033801,-150.0,9.902e-05,2]
[347648395,1736013033810,-150.0,9.902e-05,2]
[347648396,1736013033819,-150.0,9.904e-05,2]
[347648397,1736013033829,-150.0,9.907e-05,2]
[347648398,1736013033838,-1500.0,9.909e-05,2]
[347648399,1736013033848,-1500.0,9.909e-05,2]
[347648400,1736013033857,-150.0,9.91e-05,2]
[347648401,1736013033866,-1500.0,9.911e-05,2]
[347648402,1736013033875,-150.0,9.912e-05,2]
[347648403,1736013033885,-341.71493999,9.916e-05,2]
[347648404,1736013033894,-150.0,9.917e-05,2]
[347648405,1736013033904,-150.0,9.918e-05,2]
[347648406,1736013033913,-150.0,9.919e-05,2]
[347648407,1736013033922,-1994.102,9.925e-05,2]
[347648408,1736013033932,-163.188,9.925e-05,2]
[347648409,1736013033941,-150.0,9.926e-05,2]
[347648410,1736013033950,-150.0,9.929e-05,2]
[347648411,1736013033959,-150.0,9.935e-05,2]
[347648412,1736013033969,-150.0,9.935e-05,2]
[347648413,1736013033978,-1500.0,9.936e-05,2]
[347648414,1736013033987,-150.0,9.938e-05,2]
[347648415,1736013033997,-150.0,9.938e-05,2]
[347648416,1736013034006,-150.0,9.94e-05,2]
[347648417,1736013034015,-150.0,9.947e-05,2]
[347648418,1736013034024,-150.0,9.949e-05,2]
[347648419,1736013034034,-150.0,9.961e-05,2]
[347648420,1736013034043,-150.0,9.962e-05,2]
[347648421,1736013034052,-150.0,9.963e-05,2]
[347648422,1736013034062,-1500.0,9.963e-05,2]
[347648423,1736013034072,-150.0,9.965e-05,2]
[347648424,1736013034081,-500.0,9.973e-05,2]
[347648425,1736013034090,-500.0,9.973e-05,2]
[347648426,1736013034100,-341.71493999,9.974e-05,2]
[347648427,1736013034109,-150.0,9.975e-05,2]
[347648428,1736013034119,-150.0,9.976e-05,2]
[347648429,1736013034128,-150.0,9.976e-05,2]
[347648430,1736013034138,-500.0,9.979e-05,2]
[347648431,1736013034147,-500.0,9.979e-05,2]
[347648432,1736013034157,-150.0,9.98e-05,2]
[347648433,1736013034166,-1500.0,9.985e-05,2]
[347648434,1736013034176,-150.0,9.989e-05,2]
[347648435,1736013034185,-150.0,9.995e-05,2]
[347648436,1736013034196,-3638.1164765,9.997e-05,2]
[347648437,1736013034205,-6186.2650014,9.997e-05,2]
[347648438,1736013034215,-1500.0,9.997e-05,2]
[347648439,1736013034224,-150.0,9.997e-05,2]
[347648440,1736013034233,-530.85,9.999e-05,2]
[347648441,1736013034242,-500.0,9.999e-05,2]
[347648442,1736013034251,-581.56,9.999e-05,2]
[347648443,1736013034261,-500.0,9.999e-05,2]
[347648444,1736013034270,-549.33950298,9.999e-05,2]
[347648445,1736013034280,-500.0,9.999e-05,2]
[347648446,1736013034289,-500.0,9.999e-05,2]
[347648447,1736013034298,-515.91330971,9.999e-05,2]
[347648448,1736013034308,-500.0,9.999e-05,2]
[347648449,1736013034318,-500.0,9.999e-05,2]
[347648450,1736013034328,-509.889051,9.999e-05,2]
[347648451,1736013034337,-409.35389546,9.999e-05,2]
[347648452,1736013034347,-500.0,9.999e-05,2]
[347648453,1736013034356,-502.34503606,9.999e-05,2]
[347648454,1736013034366,-498.63494219,9.999e-05,2]
[347648455,1736013034375,-504.86416809,9.999e-05,2]
[347648456,1736013034384,-500.0,9.999e-05,2]
[347648457,1736013034393,-609.46,9.999e-05,2]
[347648458,1736013034403,-503.90388993,9.999e-05,2]
[347648459,1736013034413,-502.82911089,9.999e-05,2]
[347648460,1736013034422,-500.0,9.999e-05,2]
[347648461,1736013034432,-360.43591866,9.999e-05,2]
[347648462,1736013034442,-500.0,9.999e-05,2]
[347648463,1736013034451,-724.11,9.999e-05,2]
[347648464,1736013034461,-500.0,9.999e-05,2]
[347648465,1736013034470,-500.0,9.999e-05,2]
[347648466,1736013034479,-500.0,9.999e-05,2]
[347648467,1736013034493,-500.0,9.999e-05,2]
[347648468,1736013034503,-500.0,9.999e-05,2]
[347648469,1736013034512,-362.19029681,9.999e-05,2]
[347648470,1736013034521,-500.0,9.999e-05,2]
[347648472,1736013034532,-500.0,9.999e-05,2]
[347648474,1736013034541,-478.91920695,9.999e-05,2]
[347648476,1736013034551,-500.0,9.999e-05,2]
[347648478,1736013034562,-500.0,9.999e-05,2]
[347648480,1736013034572,-500.0,9.999e-05,2]
[347648482,1736013034581,-500.0,9.999e-05,2]
[347648484,1736013034591,-500.0,9.999e-05,2]
[347648486,1736013034600,-500.0,9.999e-05,2]
[347648488,1736013034609,-500.0,9.999e-05,2]
[347648490,1736013034618,-705.68,9.999e-05,2]
[347648492,1736013034627,-673.39,9.999e-05,2]
[347648494,1736013034637,-501.47,9.999e-05,2]
[347648496,1736013034646,-536.74,9.999e-05,2]
[347648498,1736013034655,-1301.49,9.999e-05,2]
[347648500,1736013034664,-485.26241416,9.999e-05,2]
[347648502,1736013034673,-15000.0,9.999e-05,2]
[347648504,1736013034682,-281.29419928,0.0001,2]
[347648506,1736013034691,-150.0,0.0001,2]
[347648507,1736013034701,-118672.74742218,0.0001,2]
[347648510,1736013034714,-474.27662681,0.0001,2]
[347648512,1736013034725,-4380.46723962,0.0001,2]
[347648514,1736013034735,-1625.64,0.0001,2]
[347648516,1736013034747,-5300.0,0.0001,2]
[347648520,1736013034770,-1007.93998328,0.0001,2]
[347648522,1736013034780,-31553.29439115,0.0001,2]
[347648830,1736013037998,-1794.8389581,0.0001,2]
[347648832,1736013038009,-655.655,0.0001,2]
[347648834,1736013038020,-3592.07747779,0.0001,2]
[347648837,1736013038032,-80509.25207816,0.0001,2]
[347648852,1736013038162,-359.46753516,0.0001,2]
[347648854,1736013038174,-4926.63449439,0.0001,2]
[347649049,1736013039967,-298.2975,0.0001,2]
[347649056,1736013040027,-534.0425677,0.0001,2]
[347649058,1736013040038,-430.3439993,0.0001,2]
[347649064,1736013040088,-3674.76568076,0.0001,2]
[347649072,1736013040150,-826.31590867,0.0001,2]
[347649074,1736013040162,-304.166235,0.0001,2]
[347649076,1736013040173,-669.0756367,0.0001,2]
[347649078,1736013040185,-58300.65231202,0.0001,2]
[347649081,1736013040196,-458.87063002,0.0001,2]
[347649083,1736013040207,-608.11212382,0.0001,2]
[347649085,1736013040223,-24668.79190335,0.0001,2]
[347649088,1736013040234,-11175.054306,0.0001,2]
[347649090,1736013040245,-4219.424151,0.0001,2]
[347649092,1736013040256,-6071.45188,0.0001,2]
[347649094,1736013040267,-6361.85050754,0.0001,2]
[347649322,1736013043028,-494.14,0.0001,2]
[347649324,1736013043040,-329.49060594,0.0001,2]
[347649330,1736013043085,-1179.56290355,0.0001,2]
[347649332,1736013043096,-6433.90948603,0.0001,2]
[347649338,1736013043144,-705.0,0.0001,2]
[347649340,1736013043156,-317.25,0.0001,2]
[347649353,1736013043264,-1366.8730975,0.0001,2]
[347649378,1736013043501,-88.87062861,0.0001,2]
[347649380,1736013043512,-850.0830851,0.0001,2]
[347649382,1736013043524,-33237.02019729,0.0001,2]
[347649384,1736013043535,-24407.45537696,0.0001,2]
[347649461,1736013046000,-500.0,9.999e-05,2]
[347649462,1736013046010,-13727.571461,0.0001,2]
[347649463,1736013046021,-2481.57987107,0.0001,2]
[347649464,1736013046032,-21947.859396,0.0001,2]
[347649465,1736013046058,-1108.46213588,0.0001,2]
[347649466,1736013046118,-3605.58901472,0.0001,2]
[347649467,1736013046132,-2654.24185893,0.0001,2]
[347649468,1736013046178,-1499.46,0.0001,2]
[347649469,1736013046190,-403.24,0.0001,2]
[347649470,1736013046200,-1325.2359382,0.0001,2]
[347649471,1736013046291,-31273.91059682,0.0001,2]
[347649472,1736013046303,-57022.9465228,0.0001,2]
[347649473,1736013046315,-2482.50469129,0.0001,2]
[347649474,1736013046326,-6050.9999995,0.0001,2]
[347649475,1736013046338,-5351.94440153,0.0001,2]
[347649476,1736013046352,-253229.45913905,0.0001,2]
[347649477,1736013046363,-2717.39685988,0.0001,2]
[347649478,1736013046412,-1828.433986,0.0001,2]
[347649479,1736013077956,179.04,7.672e-05,2]
[347649480,1736013175972,170.26468838,6.967e-05,7]
[347649481,1736013542993,500.0,7e-05,2]
[347649486,1736013956563,179.04,6.798e-05,2]
[347649488,1736014028235,173.0,0.000108,30]
[347649489,1736014147218,-171.17,7.397e-05,2]
[347649502,1736014232295,-2316.86,8.219e-05,2]
[347649503,1736014232305,-200.0,8.467e-05,2]
[347649504,1736014232315,-300.0,8.469e-05,2]
[347649505,1736014232324,-10739.41,8.47e-05,2]
[347649506,1736014232334,-18802.19,8.484e-05,2]
[347649507,1736014232343,-250.0,8.498e-05,2]
[347649508,1736014232352,-1500.0,8.586e-05,2]
[347649509,1736014232362,-1000.0,8.6e-05,2]
[347649510,1736014232372,-2000.0,8.646e-05,2]
[347649511,1736014232383,-250.0,8.686e-05,2]
[347649512,1736014232392,-170.13,8.693e-05,2]
[347649513,1736014232401,-250.0,8.781e-05,2]
[347649514,1736014232410,-300.0,8.855e-05,2]
[347649515,1736014232420,-155.48,8.895e-05,2]
[347649516,1736014232429,-2715.77,8.895e-05,2]
[347649517,1736014232438,-207.98235848,9e-05,2]
[347649518,1736014232448,-150.37397823,9e-05,2]
[347649519,1736014232457,-150.0,9e-05,2]
[347649520,1736014232467,-438.32,9.043e-05,2]
[347649521,1736014232476,-1002.33,9.043e-05,2]
[347649522,1736014232485,-5649.21,9.045e-05,2]
[347649523,1736014232494,-1818.97,9.055e-05,2]
[347649524,1736014232504,-180.45,9.136e-05,2]
[347649525,1736014232513,-524.98591577,9.149e-05,2]
[347649526,1736014232525,-106.40408423,9.149e-05,2]
[347649527,1736014232534,-500.0,9.158e-05,2]
[347649528,1736014232543,-1800.0,9.158e-05,2]
[347649529,1736014232553,-159.21,9.192e-05,2]
[347649530,1736014232562,-420.0,9.315e-05,2]
[347649531,1736014232571,-707.545,9.5e-05,2]
[347649532,1736014232580,-171.56,9.6e-05,2]
[347649533,1736014232589,-180.45,9.643e-05,2]
[347649534,1736014232599,-1000.0,9.676e-05,2]
[347649535,1736014232608,-3893.0,9.74e-05,2]
[347649536,1736014232617,-293.681,9.74e-05,2]
[347649537,1736014232627,-1103.0,9.74e-05,2]
[347649538,1736014232636,-3410.41416945,9.9e-05,2]
[347649539,1736014232648,-7726.14823055,9.9e-05,2]
[347649540,1736014232658,-4318.48241708,9.9e-05,2]
[347649541,1736014232669,-132.00568292,9.9e-05,2]
[347649542,1736014232679,-1296.22118717,9.926e-05,2]
[347649543,1736014232699,-334.78694722,9.926e-05,2]
[347649544,1736014232710,-881.08675534,9.926e-05,2]
[347649545,1736014232721,-176.43611027,9.926e-05,2]
[347649546,1736014232731,-187.326,9.926e-05,2]
[347649547,1736014232740,-171.56,9.996e-05,2]
[347649548,1736014232751,-10006.024444,9.998e-05,2]
[347649549,1736014232760,-500.0,9.998e-05,2]
[347649550,1736014232769,-500.0,9.998e-05,2]
[347649551,1736014232778,-500.0,9.998e-05,2]
[347649552,1736014232788,-514.37,9.998e-05,2]
[347649553,1736014232797,-500.0,9.999e-05,2]
[347649554,1736014232807,-500.0,9.999e-05,2]
[347649555,1736014232816,-500.0,9.999e-05,2]
[347649556,1736014232826,-676.27,9.999e-05,2]
[347649557,1736014232836,-500.0,9.999e-05,2]
[347649558,1736014232845,-500.0,9.999e-05,2]
[347649559,1736014232854,-19708.60598429,9.999e-05,2]
[347649560,1736014232865,-60055.76912092,9.999e-05,2]
[347649561,1736014232878,-24600.00141145,9.999e-05,2]
[347649562,1736014232889,-77411.84932666,9.999e-05,2]
[347649563,1736014232898,-500.0,9.999e-05,2]
[347649565,1736014232908,-500.0,9.999e-05,2]
[347649567,1736014232921,-500.0,9.999e-05,2]
[347649569,1736014232930,-500.0,9.999e-05,2]
[347649571,1736014232939,-645.33,9.999e-05,2]
[347649573,1736014232948,-500.0,9.999e-05,2]
[347649575,1736014232958,-500.0,9.999e-05,2]
[347649577,1736014232967,-1247.26,9.999e-05,2]
[347649579,1736014232976,-500.0,9.999e-05,2]
[347649581,1736014232986,-500.0,9.999e-05,2]
[347649583,1736014232997,-500.0,9.999e-05,2]
[347649585,1736014233006,-500.0,9.999e-05,2]
[347649587,1736014233015,-500.0,9.999e-05,2]
[347649589,1736014233025,-500.0,9.999e-05,2]
[347649591,1736014233034,-182.39593078,9.999e-05,2]
[347649593,1736014233043,-693.94,9.999e-05,2]
[347649595,1736014233053,-219.7700807,9.999e-05,2]
[347649597,1736014233062,-500.0,9.999e-05,2]
[347649599,1736014233071,-500.0,9.999e-05,2]
[347649601,1736014233081,-590.68702372,9.999e-05,2]
[347649603,1736014233091,-10543.76672949,9.999e-05,2]
[347649606,1736014233102,-1158.228,9.999e-05,2]
[347649608,1736014233114,-358.35358244,9.999e-05,2]
[347649610,1736014233126,-1784.09420779,9.999e-05,2]
[347649612,1736014233137,-1155.55748028,9.999e-05,2]
[347649614,1736014233148,-827.4595768,0.0001,2]